[Event "Titled Tuesday Blitz August 09 Early 2022"]
[White "Goldin, Roman"]
[Black "Ianov, Viktor"]
[WhiteFideId "2803860"]
[BlackFideId "14102730"]
[WhiteElo "2312"]
[BlackElo "2152"]
[Result "0-1"]
[Round "06"]
[TimeControl "180+1"]
[Date "2022.08.09"]
[WhiteClock "0:00:02"]
[BlackClock "0:00:23"]

1. Nf3 {[%clk 0:02:58]}  d6 {[%clk 0:02:59]} 2. d4 {[%clk 0:02:57]}  g6 {[%clk 0:02:59]} 3. e4 {[%clk 0:02:56]}  Bg7 {[%clk 0:02:59]} 4. Nc3 {[%clk 0:02:55]}  a6 {[%clk 0:02:59]} 5. a4 {[%clk 0:02:54]}  b6 {[%clk 0:02:59]} 6. Bc4 {[%clk 0:02:48]}  e6 {[%clk 0:02:59]} 7. h4 {[%clk 0:02:44]}  h6 {[%clk 0:02:58]} 8. Be3 {[%clk 0:02:42]}  Ne7 {[%clk 0:02:58]} 9. Qd2 {[%clk 0:02:42]}  Nd7 {[%clk 0:02:58]} 10. Ba2 {[%clk 0:02:36]}  Bb7 {[%clk 0:02:58]} 11. h5 {[%clk 0:02:24]}  g5 {[%clk 0:02:57]} 12. Nh2 {[%clk 0:02:20]}  Nf6 {[%clk 0:02:56]} 13. f3 {[%clk 0:02:04]}  Nxh5 {[%clk 0:02:54]} 14. Ng4 {[%clk 0:02:01]}  Nf6 {[%clk 0:02:52]} 15. Nxf6+ {[%clk 0:01:50]}  Bxf6 {[%clk 0:02:51]} 16. O-O-O {[%clk 0:01:46]}  Ng6 {[%clk 0:02:49]} 17. g3 {[%clk 0:01:44]}  c5 {[%clk 0:02:32]} 18. f4 {[%clk 0:01:41]}  gxf4 {[%clk 0:02:28]} 19. gxf4 {[%clk 0:01:41]}  cxd4 {[%clk 0:02:02]} 20. Bxd4 {[%clk 0:01:40]}  Bxd4 {[%clk 0:01:59]} 21. Qxd4 {[%clk 0:01:39]}  Ke7 {[%clk 0:01:51]} 22. Qf2 {[%clk 0:01:07]}  Qc7 {[%clk 0:01:45]} 23. f5 {[%clk 0:01:01]}  exf5 {[%clk 0:01:43]} 24. exf5 {[%clk 0:00:58]}  Ne5 {[%clk 0:01:42]} 25. f6+ {[%clk 0:00:47]}  Kf8 {[%clk 0:01:40]} 26. Rhg1 {[%clk 0:00:25]}  Rc8 {[%clk 0:01:38]} 27. Rg7 {[%clk 0:00:17]}  Qc5 {[%clk 0:01:29]} 28. Qg3 {[%clk 0:00:16]}  Ke8 {[%clk 0:01:16]} 29. Bb3 {[%clk 0:00:11]}  Rf8 {[%clk 0:01:14]} 30. Kb1 {[%clk 0:00:06]}  Kd8 {[%clk 0:01:11]} 31. Nd5 {[%clk 0:00:06]}  b5 {[%clk 0:00:59]} 32. Ne7 {[%clk 0:00:05]}  Rc7 {[%clk 0:00:56]} 33. Nf5 {[%clk 0:00:05]}  Rd7 {[%clk 0:00:54]} 34. Rd2 {[%clk 0:00:02]}  Be4 {[%clk 0:00:50]} 35. axb5 {[%clk 0:00:02]}  Bxf5 {[%clk 0:00:49]} 36. bxa6 {[%clk 0:00:01]}  Qb6 {[%clk 0:00:48]} 37. Rg8 {[%clk 0:00:01]}  Rxg8 {[%clk 0:00:46]} 38. Qxg8+ {[%clk 0:00:01]}  Kc7 {[%clk 0:00:46]} 39. Qe8 {[%clk 0:00:02]}  Qxa6 {[%clk 0:00:38]} 40. Rd4 {[%clk 0:00:02]}  Qf1+ {[%clk 0:00:32]} 41. Ka2 {[%clk 0:00:02]}  Be6 {[%clk 0:00:31]} 42. Ra4 {[%clk 0:00:02]}  Bxb3+ {[%clk 0:00:29]} 43. cxb3 {[%clk 0:00:03]}  Qf2 {[%clk 0:00:29]} 44. Ra6 {[%clk 0:00:02]}  Nd3 {[%clk 0:00:24]} 45. Qa8 {[%clk 0:00:02]}  Qxb2# {[%clk 0:00:23]} 0-1


[Site "https://www.chess.com"]

[Event "Titled Tuesday Blitz August 09 Early 2022"]
[White "Gubanov, Oleg"]
[Black "Namitbir Singh Walia"]
[WhiteFideId "14115115"]
[BlackFideId "35071068"]
[WhiteElo "2080"]
[BlackElo "1664"]
[Result "0-1"]
[Round "06"]
[TimeControl "180+1"]
[Date "2022.08.09"]
[WhiteClock "0:00:01"]
[BlackClock "0:00:29"]

1. e4 {[%clk 0:03:00]}  c5 {[%clk 0:02:59]} 2. c3 {[%clk 0:03:00]}  d5 {[%clk 0:02:59]} 3. exd5 {[%clk 0:03:01]}  Qxd5 {[%clk 0:03:00]} 4. d4 {[%clk 0:03:01]}  Nc6 {[%clk 0:02:59]} 5. Nf3 {[%clk 0:03:01]}  Nf6 {[%clk 0:02:59]} 6. Be2 {[%clk 0:03:01]}  e6 {[%clk 0:02:58]} 7. Na3 {[%clk 0:02:59]}  cxd4 {[%clk 0:02:55]} 8. Nb5 {[%clk 0:02:59]}  Qd8 {[%clk 0:02:45]} 9. Nbxd4 {[%clk 0:02:57]}  Bd7 {[%clk 0:02:43]} 10. O-O {[%clk 0:02:52]}  Bd6 {[%clk 0:02:41]} 11. Nb5 {[%clk 0:02:29]}  Bb8 {[%clk 0:02:28]} 12. Nd6+ {[%clk 0:02:29]}  Bxd6 {[%clk 0:02:28]} 13. Qxd6 {[%clk 0:02:30]}  Qe7 {[%clk 0:02:27]} 14. Bf4 {[%clk 0:02:29]}  Nd5 {[%clk 0:02:25]} 15. Bg3 {[%clk 0:02:22]}  O-O {[%clk 0:02:21]} 16. c4 {[%clk 0:02:04]}  Nb6 {[%clk 0:02:21]} 17. Qxe7 {[%clk 0:01:49]}  Nxe7 {[%clk 0:02:21]} 18. Bd6 {[%clk 0:01:50]}  Rfe8 {[%clk 0:02:21]} 19. Ne5 {[%clk 0:01:50]}  Nf5 {[%clk 0:02:13]} 20. Bc5 {[%clk 0:01:25]}  f6 {[%clk 0:02:05]} 21. Bxb6 {[%clk 0:01:10]}  fxe5 {[%clk 0:02:06]} 22. Bc7 {[%clk 0:01:01]}  e4 {[%clk 0:01:53]} 23. Rfd1 {[%clk 0:00:49]}  Bc6 {[%clk 0:01:53]} 24. b4 {[%clk 0:00:47]}  Rac8 {[%clk 0:01:51]} 25. Bf4 {[%clk 0:00:45]}  e5 {[%clk 0:01:50]} 26. Be3 {[%clk 0:00:27]}  Nxe3 {[%clk 0:01:48]} 27. fxe3 {[%clk 0:00:28]}  Rcd8 {[%clk 0:01:41]} 28. b5 {[%clk 0:00:26]}  Bd7 {[%clk 0:01:41]} 29. Rd5 {[%clk 0:00:25]}  Be6 {[%clk 0:01:32]} 30. Rxe5 {[%clk 0:00:22]}  Rd2 {[%clk 0:01:18]} 31. Bg4 {[%clk 0:00:20]}  Bd7 {[%clk 0:01:13]} 32. Rxe8+ {[%clk 0:00:18]}  Bxe8 {[%clk 0:01:13]} 33. Be6+ {[%clk 0:00:15]}  Bf7 {[%clk 0:01:13]} 34. Bxf7+ {[%clk 0:00:15]}  Kxf7 {[%clk 0:01:14]} 35. Rc1 {[%clk 0:00:14]}  Rxa2 {[%clk 0:01:07]} 36. c5 {[%clk 0:00:14]}  Ke7 {[%clk 0:01:06]} 37. c6 {[%clk 0:00:14]}  bxc6 {[%clk 0:01:07]} 38. bxc6 {[%clk 0:00:14]}  Kd8 {[%clk 0:01:07]} 39. Rc4 {[%clk 0:00:13]}  Ra6 {[%clk 0:00:48]} 40. c7+ {[%clk 0:00:11]}  Kc8 {[%clk 0:00:48]} 41. Rxe4 {[%clk 0:00:11]}  Rd6 {[%clk 0:00:44]} 42. Ra4 {[%clk 0:00:08]}  a6 {[%clk 0:00:43]} 43. Kf2 {[%clk 0:00:06]}  Kxc7 {[%clk 0:00:43]} 44. e4 {[%clk 0:00:07]}  Kb6 {[%clk 0:00:43]} 45. Kf3 {[%clk 0:00:06]}  Kb5 {[%clk 0:00:43]} 46. Ra1 {[%clk 0:00:06]}  Rf6+ {[%clk 0:00:42]} 47. Ke3 {[%clk 0:00:06]}  a5 {[%clk 0:00:42]} 48. e5 {[%clk 0:00:06]}  Rh6 {[%clk 0:00:33]} 49. h3 {[%clk 0:00:04]}  Ra6 {[%clk 0:00:32]} 50. Ke4 {[%clk 0:00:04]}  Kc5 {[%clk 0:00:32]} 51. Kf5 {[%clk 0:00:01]}  g6+ {[%clk 0:00:30]} 52. Ke4 {[%clk 0:00:01]}  Kc6 {[%clk 0:00:29]} 0-1


[Site "https://www.chess.com"]

[Event "Titled Tuesday Blitz August 09 Early 2022"]
[White "Hambleton, Aman"]
[Black "Kravtsiv, Martyn"]
[WhiteFideId "2606577"]
[BlackFideId "14113147"]
[WhiteElo "2788"]
[BlackElo "2818"]
[Result "1-0"]
[Round "06"]
[TimeControl "180+1"]
[Date "2022.08.09"]
[WhiteClock "0:00:02"]
[BlackClock "0:00:02"]

1. d4 {[%clk 0:02:58]}  d5 {[%clk 0:02:59]} 2. Bf4 {[%clk 0:02:57]}  c5 {[%clk 0:02:56]} 3. e3 {[%clk 0:02:57]}  Nc6 {[%clk 0:02:56]} 4. c3 {[%clk 0:02:57]}  e6 {[%clk 0:02:55]} 5. Nd2 {[%clk 0:02:55]}  Nf6 {[%clk 0:02:55]} 6. Ngf3 {[%clk 0:02:55]}  Bd6 {[%clk 0:02:55]} 7. Bg3 {[%clk 0:02:55]}  O-O {[%clk 0:02:54]} 8. Bd3 {[%clk 0:02:55]}  g6 {[%clk 0:02:54]} 9. O-O {[%clk 0:02:20]}  b6 {[%clk 0:02:45]} 10. e4 {[%clk 0:02:08]}  Bxg3 {[%clk 0:02:43]} 11. hxg3 {[%clk 0:02:07]}  cxd4 {[%clk 0:02:38]} 12. cxd4 {[%clk 0:01:56]}  dxe4 {[%clk 0:02:37]} 13. Nxe4 {[%clk 0:01:56]}  Bb7 {[%clk 0:02:35]} 14. Nxf6+ {[%clk 0:01:13]}  Qxf6 {[%clk 0:02:34]} 15. Be4 {[%clk 0:01:14]}  Rfd8 {[%clk 0:02:21]} 16. Qa4 {[%clk 0:01:14]}  Rac8 {[%clk 0:01:17]} 17. Rac1 {[%clk 0:01:11]}  Nxd4 {[%clk 0:01:15]} 18. Rxc8 {[%clk 0:00:50]}  Bxc8 {[%clk 0:01:13]} 19. Qxa7 {[%clk 0:00:43]}  e5 {[%clk 0:01:12]} 20. Nxd4 {[%clk 0:00:21]}  Rxd4 {[%clk 0:01:10]} 21. Qb8 {[%clk 0:00:17]}  Rxe4 {[%clk 0:01:05]} 22. Qxc8+ {[%clk 0:00:16]}  Kg7 {[%clk 0:01:05]} 23. Qc2 {[%clk 0:00:15]}  Rd4 {[%clk 0:01:03]} 24. Re1 {[%clk 0:00:14]}  Qd6 {[%clk 0:01:00]} 25. Qc3 {[%clk 0:00:13]}  h5 {[%clk 0:00:58]} 26. f4 {[%clk 0:00:05]}  f6 {[%clk 0:00:50]} 27. fxe5 {[%clk 0:00:05]}  fxe5 {[%clk 0:00:51]} 28. Qe3 {[%clk 0:00:04]}  Rd5 {[%clk 0:00:47]} 29. Kh2 {[%clk 0:00:03]}  Qf6 {[%clk 0:00:25]} 30. Qe4 {[%clk 0:00:03]}  Rc5 {[%clk 0:00:16]} 31. b4 {[%clk 0:00:03]}  Rc7 {[%clk 0:00:12]} 32. Qxe5 {[%clk 0:00:02]}  Qxe5 {[%clk 0:00:12]} 33. Rxe5 {[%clk 0:00:03]}  Rc2 {[%clk 0:00:12]} 34. Rb5 {[%clk 0:00:03]}  Rxa2 {[%clk 0:00:12]} 35. Rxb6 {[%clk 0:00:04]}  Rb2 {[%clk 0:00:12]} 36. Kh3 {[%clk 0:00:04]}  Rb1 {[%clk 0:00:11]} 37. g4 {[%clk 0:00:03]}  Rb3+ {[%clk 0:00:10]} 38. Kh4 {[%clk 0:00:03]}  hxg4 {[%clk 0:00:10]} 39. Kxg4 {[%clk 0:00:03]}  Kf7 {[%clk 0:00:10]} 40. Kf4 {[%clk 0:00:03]}  Kg7 {[%clk 0:00:09]} 41. g4 {[%clk 0:00:03]}  Kf7 {[%clk 0:00:08]} 42. Kg5 {[%clk 0:00:03]}  Rb1 {[%clk 0:00:08]} 43. Rb7+ {[%clk 0:00:03]}  Ke6 {[%clk 0:00:06]} 44. Kxg6 {[%clk 0:00:04]}  Kd6 {[%clk 0:00:04]} 45. g5 {[%clk 0:00:04]}  Rf1 {[%clk 0:00:04]} 46. Rf7 {[%clk 0:00:03]}  Rb1 {[%clk 0:00:03]} 47. Rf6+ {[%clk 0:00:02]}  Ke7 {[%clk 0:00:03]} 48. Rf4 {[%clk 0:00:02]}  Rd1 {[%clk 0:00:03]} 49. Kg7 {[%clk 0:00:02]}  Rd7 {[%clk 0:00:02]} 50. Rf7+ {[%clk 0:00:02]} 1-0


[Site "https://www.chess.com"]

[Event "Titled Tuesday Blitz August 09 Early 2022"]
[White "Harsh Suresh"]
[Black "Toncheva, Nadya"]
[WhiteFideId "45018464"]
[BlackFideId "2924056"]
[WhiteElo "2070"]
[BlackElo "1888"]
[Result "1-0"]
[Round "06"]
[TimeControl "180+1"]
[Date "2022.08.09"]
[WhiteClock "0:00:19"]
[BlackClock "0:00:02"]

1. e4 {[%clk 0:03:00]}  c5 {[%clk 0:03:00]} 2. Nc3 {[%clk 0:03:00]}  Nc6 {[%clk 0:03:00]} 3. Bb5 {[%clk 0:02:59]}  Nd4 {[%clk 0:03:00]} 4. Bc4 {[%clk 0:03:00]}  g6 {[%clk 0:03:00]} 5. Nf3 {[%clk 0:03:00]}  Bg7 {[%clk 0:03:00]} 6. Nxd4 {[%clk 0:03:01]}  cxd4 {[%clk 0:03:00]} 7. Qf3 {[%clk 0:03:01]}  e6 {[%clk 0:02:53]} 8. Nb5 {[%clk 0:03:01]}  d6 {[%clk 0:02:37]} 9. Qa3 {[%clk 0:03:01]}  Bf8 {[%clk 0:02:24]} 10. Nxd4 {[%clk 0:03:00]}  Nf6 {[%clk 0:02:18]} 11. Qf3 {[%clk 0:02:57]}  Bg7 {[%clk 0:02:13]} 12. d3 {[%clk 0:02:52]}  O-O {[%clk 0:02:11]} 13. Bb3 {[%clk 0:02:51]}  a5 {[%clk 0:02:01]} 14. a4 {[%clk 0:02:50]}  Bd7 {[%clk 0:01:58]} 15. O-O {[%clk 0:02:45]}  Rc8 {[%clk 0:01:54]} 16. Bg5 {[%clk 0:02:42]}  h6 {[%clk 0:01:47]} 17. Bh4 {[%clk 0:02:42]}  g5 {[%clk 0:01:43]} 18. Bg3 {[%clk 0:02:42]}  Qb6 {[%clk 0:01:39]} 19. Nb5 {[%clk 0:02:31]}  Bxb5 {[%clk 0:01:34]} 20. axb5 {[%clk 0:02:32]}  Rfd8 {[%clk 0:01:21]} 21. c4 {[%clk 0:02:24]}  Qd4 {[%clk 0:01:11]} 22. Rxa5 {[%clk 0:02:17]}  Qxb2 {[%clk 0:01:10]} 23. Bd1 {[%clk 0:02:16]}  Qc3 {[%clk 0:01:07]} 24. Ra7 {[%clk 0:02:11]}  Ra8 {[%clk 0:00:53]} 25. Rxa8 {[%clk 0:02:03]}  Rxa8 {[%clk 0:00:54]} 26. Bxd6 {[%clk 0:02:03]}  Ra2 {[%clk 0:00:44]} 27. e5 {[%clk 0:01:49]}  Nd7 {[%clk 0:00:41]} 28. Qxb7 {[%clk 0:01:48]}  Nxe5 {[%clk 0:00:38]} 29. Bxe5 {[%clk 0:01:46]}  Bxe5 {[%clk 0:00:38]} 30. Bh5 {[%clk 0:01:29]}  Rxf2 {[%clk 0:00:25]} 31. Kxf2 {[%clk 0:00:38]}  Qd4+ {[%clk 0:00:17]} 32. Ke2 {[%clk 0:00:38]}  Qb2+ {[%clk 0:00:14]} 33. Kf3 {[%clk 0:00:38]}  g4+ {[%clk 0:00:11]} 34. Kxg4 {[%clk 0:00:30]}  Qe2+ {[%clk 0:00:10]} 35. Qf3 {[%clk 0:00:29]}  f5+ {[%clk 0:00:09]} 36. Kh3 {[%clk 0:00:29]}  Qd2 {[%clk 0:00:07]} 37. b6 {[%clk 0:00:25]}  Qg5 {[%clk 0:00:05]} 38. g3 {[%clk 0:00:20]}  Qd2 {[%clk 0:00:03]} 39. b7 {[%clk 0:00:20]}  Qb4 {[%clk 0:00:03]} 40. Qc6 {[%clk 0:00:19]}  Kg7 {[%clk 0:00:03]} 41. Qd7+ {[%clk 0:00:18]}  Kf6 {[%clk 0:00:01]} 42. Qf7+ {[%clk 0:00:18]}  Kg5 {[%clk 0:00:02]} 43. Qg6# {[%clk 0:00:19]} 1-0


[Site "https://www.chess.com"]

[Event "Titled Tuesday Blitz August 09 Early 2022"]
[White "Hartikainen, Jarmo"]
[Black "Samarth, J Rao"]
[WhiteFideId "503134"]
[BlackFideId "46652370"]
[WhiteElo "2142"]
[BlackElo "1514"]
[Result "0-1"]
[Round "06"]
[TimeControl "180+1"]
[Date "2022.08.09"]
[WhiteClock "0:00:37"]
[BlackClock "0:00:29"]

1. e4 {[%clk 0:03:00]}  e5 {[%clk 0:02:49]} 2. Nf3 {[%clk 0:03:00]}  Nc6 {[%clk 0:02:48]} 3. Bc4 {[%clk 0:03:00]}  Bc5 {[%clk 0:02:44]} 4. c3 {[%clk 0:02:59]}  Nf6 {[%clk 0:02:39]} 5. d4 {[%clk 0:02:58]}  exd4 {[%clk 0:02:39]} 6. b4 {[%clk 0:02:58]}  Bb6 {[%clk 0:02:23]} 7. e5 {[%clk 0:02:58]}  d5 {[%clk 0:02:20]} 8. exf6 {[%clk 0:02:57]}  dxc4 {[%clk 0:02:19]} 9. Qe2+ {[%clk 0:02:57]}  Kf8 {[%clk 0:02:18]} 10. b5 {[%clk 0:02:45]}  d3 {[%clk 0:02:11]} 11. Qe4 {[%clk 0:02:33]}  Na5 {[%clk 0:02:01]} 12. Ba3+ {[%clk 0:01:36]}  Kg8 {[%clk 0:01:53]} 13. Qe7 {[%clk 0:01:33]}  Qxe7+ {[%clk 0:01:39]} 14. Bxe7 {[%clk 0:01:31]}  Bd7 {[%clk 0:01:33]} 15. a4 {[%clk 0:01:30]}  Re8 {[%clk 0:01:23]} 16. O-O {[%clk 0:01:29]}  Nb3 {[%clk 0:01:04]} 17. Ra2 {[%clk 0:01:27]}  h6 {[%clk 0:01:00]} 18. Nbd2 {[%clk 0:01:25]}  Nxd2 {[%clk 0:00:54]} 19. Nxd2 {[%clk 0:01:22]}  gxf6 {[%clk 0:00:49]} 20. Bxf6 {[%clk 0:01:20]}  Rh7 {[%clk 0:00:49]} 21. Nxc4 {[%clk 0:01:15]}  Be6 {[%clk 0:00:49]} 22. Nxb6 {[%clk 0:01:00]}  Bxa2 {[%clk 0:00:47]} 23. Nd7 {[%clk 0:00:51]}  d2 {[%clk 0:00:43]} 24. Ne5 {[%clk 0:00:49]}  Bb3 {[%clk 0:00:34]} 25. Nf3 {[%clk 0:00:37]}  d1=Q {[%clk 0:00:29]} 0-1


[Site "https://www.chess.com"]

[Event "Titled Tuesday Blitz August 09 Early 2022"]
[White "Jaskolka, Tomasz"]
[Black "Sohier, Julien"]
[WhiteFideId "1170791"]
[BlackFideId "645346"]
[WhiteElo "2073"]
[BlackElo "2209"]
[Result "0-1"]
[Round "06"]
[TimeControl "180+1"]
[Date "2022.08.09"]
[WhiteClock "0:00:03"]
[BlackClock "0:00:13"]

1. d4 {[%clk 0:03:00]}  d5 {[%clk 0:02:59]} 2. c4 {[%clk 0:03:01]}  c6 {[%clk 0:03:00]} 3. Nf3 {[%clk 0:02:58]}  Nf6 {[%clk 0:03:00]} 4. g3 {[%clk 0:02:59]}  g6 {[%clk 0:02:58]} 5. Bg2 {[%clk 0:02:59]}  Bg7 {[%clk 0:02:59]} 6. Nc3 {[%clk 0:03:00]}  O-O {[%clk 0:02:59]} 7. O-O {[%clk 0:03:00]}  dxc4 {[%clk 0:02:59]} 8. Ne5 {[%clk 0:02:58]}  Ng4 {[%clk 0:02:59]} 9. Nf3 {[%clk 0:02:36]}  Nd7 {[%clk 0:02:42]} 10. e4 {[%clk 0:02:31]}  e5 {[%clk 0:02:41]} 11. d5 {[%clk 0:02:25]}  cxd5 {[%clk 0:02:38]} 12. Nxd5 {[%clk 0:02:25]}  Nb6 {[%clk 0:02:35]} 13. Bg5 {[%clk 0:02:16]}  f6 {[%clk 0:02:31]} 14. Nxb6 {[%clk 0:02:15]}  Qxb6 {[%clk 0:02:30]} 15. Bd2 {[%clk 0:02:10]}  Qxb2 {[%clk 0:02:28]} 16. Rb1 {[%clk 0:02:07]}  Qxa2 {[%clk 0:02:26]} 17. Bb4 {[%clk 0:02:02]}  Re8 {[%clk 0:02:20]} 18. h3 {[%clk 0:01:43]}  Nh6 {[%clk 0:02:20]} 19. Qd5+ {[%clk 0:01:22]}  Nf7 {[%clk 0:02:11]} 20. Rfd1 {[%clk 0:01:19]}  a5 {[%clk 0:02:02]} 21. Ra1 {[%clk 0:01:15]}  Qb3 {[%clk 0:02:02]} 22. Rab1 {[%clk 0:01:14]}  Qa4 {[%clk 0:02:00]} 23. Bc5 {[%clk 0:01:08]}  c3 {[%clk 0:01:43]} 24. Ra1 {[%clk 0:01:03]}  Qc6 {[%clk 0:01:42]} 25. Qxc6 {[%clk 0:00:58]}  bxc6 {[%clk 0:01:43]} 26. Rdc1 {[%clk 0:00:58]}  a4 {[%clk 0:01:34]} 27. Rxc3 {[%clk 0:00:57]}  Be6 {[%clk 0:01:25]} 28. Bf1 {[%clk 0:00:55]}  Red8 {[%clk 0:01:08]} 29. Be3 {[%clk 0:00:55]}  Rdc8 {[%clk 0:00:57]} 30. Nd2 {[%clk 0:00:53]}  Bf8 {[%clk 0:00:53]} 31. Nc4 {[%clk 0:00:52]}  Bb4 {[%clk 0:00:43]} 32. Rcc1 {[%clk 0:00:50]}  Bxc4 {[%clk 0:00:34]} 33. Bxc4 {[%clk 0:00:49]}  Kg7 {[%clk 0:00:34]} 34. f4 {[%clk 0:00:44]}  Nd6 {[%clk 0:00:32]} 35. Bd3 {[%clk 0:00:41]}  c5 {[%clk 0:00:30]} 36. fxe5 {[%clk 0:00:41]}  fxe5 {[%clk 0:00:30]} 37. Bg5 {[%clk 0:00:32]}  c4 {[%clk 0:00:27]} 38. Bc2 {[%clk 0:00:33]}  Bc3 {[%clk 0:00:27]} 39. Rxa4 {[%clk 0:00:31]}  Rxa4 {[%clk 0:00:27]} 40. Bxa4 {[%clk 0:00:32]}  Bd4+ {[%clk 0:00:26]} 41. Kg2 {[%clk 0:00:32]}  Nxe4 {[%clk 0:00:26]} 42. Be7 {[%clk 0:00:31]}  c3 {[%clk 0:00:24]} 43. Kf3 {[%clk 0:00:29]}  Nf6 {[%clk 0:00:20]} 44. Ke2 {[%clk 0:00:20]}  Nd5 {[%clk 0:00:19]} 45. Bd6 {[%clk 0:00:18]}  Nb6 {[%clk 0:00:17]} 46. Bc2 {[%clk 0:00:17]}  Nc4 {[%clk 0:00:16]} 47. Bb4 {[%clk 0:00:16]}  Ne3 {[%clk 0:00:16]} 48. Be4 {[%clk 0:00:16]}  Nf5 {[%clk 0:00:16]} 49. g4 {[%clk 0:00:16]}  Ng3+ {[%clk 0:00:16]} 50. Kd3 {[%clk 0:00:17]}  Nxe4 {[%clk 0:00:16]} 51. Kxe4 {[%clk 0:00:17]}  Rc4 {[%clk 0:00:16]} 52. Bd6 {[%clk 0:00:11]}  c2 {[%clk 0:00:15]} 53. Bxe5+ {[%clk 0:00:08]}  Bxe5+ {[%clk 0:00:16]} 54. Kxe5 {[%clk 0:00:09]}  Kh6 {[%clk 0:00:16]} 55. h4 {[%clk 0:00:09]}  Rc8 {[%clk 0:00:15]} 56. Kf6 {[%clk 0:00:09]}  Rc6+ {[%clk 0:00:14]} 57. Ke5 {[%clk 0:00:09]}  Kg7 {[%clk 0:00:13]} 58. Kf4 {[%clk 0:00:09]}  Kf6 {[%clk 0:00:13]} 59. Ke3 {[%clk 0:00:09]}  Ke5 {[%clk 0:00:13]} 60. Kf3 {[%clk 0:00:09]}  Rc8 {[%clk 0:00:13]} 61. Ke3 {[%clk 0:00:09]}  h6 {[%clk 0:00:12]} 62. h5 {[%clk 0:00:06]}  g5 {[%clk 0:00:12]} 63. Kf3 {[%clk 0:00:06]}  Kd4 {[%clk 0:00:12]} 64. Ke2 {[%clk 0:00:06]}  Ke4 {[%clk 0:00:12]} 65. Kd2 {[%clk 0:00:06]}  Kf4 {[%clk 0:00:12]} 66. Rf1+ {[%clk 0:00:06]}  Kxg4 {[%clk 0:00:12]} 67. Kc1 {[%clk 0:00:05]}  Kxh5 {[%clk 0:00:12]} 68. Re1 {[%clk 0:00:05]}  Kg6 {[%clk 0:00:12]} 69. Re6+ {[%clk 0:00:06]}  Kh5 {[%clk 0:00:12]} 70. Re4 {[%clk 0:00:06]}  g4 {[%clk 0:00:12]} 71. Re5+ {[%clk 0:00:07]}  Kh4 {[%clk 0:00:12]} 72. Re1 {[%clk 0:00:07]}  h5 {[%clk 0:00:13]} 73. Rh1+ {[%clk 0:00:07]}  Kg5 {[%clk 0:00:13]} 74. Rd1 {[%clk 0:00:08]}  cxd1=Q+ {[%clk 0:00:12]} 75. Kb2 {[%clk 0:00:03]}  Qd4+ {[%clk 0:00:11]} 76. Kb3 {[%clk 0:00:03]}  Qb6+ {[%clk 0:00:12]} 77. Ka4 {[%clk 0:00:03]}  Ra8# {[%clk 0:00:13]} 0-1


[Site "https://www.chess.com"]

[Event "Titled Tuesday Blitz August 09 Early 2022"]
[White "Kashefi, Amir Hosein"]
[Black "Khripachenko, Alexander"]
[WhiteFideId "12557935"]
[BlackFideId "54184975"]
[WhiteElo "1962"]
[BlackElo "2233"]
[Result "0-1"]
[Round "06"]
[TimeControl "180+1"]
[Date "2022.08.09"]
[WhiteClock "0:00:02"]
[BlackClock "0:00:14"]

1. d4 {[%clk 0:02:59]}  d5 {[%clk 0:02:57]} 2. c4 {[%clk 0:02:58]}  e6 {[%clk 0:02:57]} 3. Nc3 {[%clk 0:02:58]}  Be7 {[%clk 0:02:57]} 4. cxd5 {[%clk 0:02:59]}  exd5 {[%clk 0:02:57]} 5. Qc2 {[%clk 0:03:00]}  c6 {[%clk 0:02:55]} 6. Bf4 {[%clk 0:03:00]}  g6 {[%clk 0:02:55]} 7. e3 {[%clk 0:02:58]}  Bf5 {[%clk 0:02:55]} 8. Bd3 {[%clk 0:02:59]}  Bxd3 {[%clk 0:02:55]} 9. Qxd3 {[%clk 0:03:00]}  Nd7 {[%clk 0:02:55]} 10. Nge2 {[%clk 0:03:00]}  Ngf6 {[%clk 0:02:53]} 11. h4 {[%clk 0:03:00]}  h5 {[%clk 0:02:51]} 12. O-O-O {[%clk 0:02:59]}  Qa5 {[%clk 0:02:48]} 13. Kb1 {[%clk 0:02:59]}  O-O-O {[%clk 0:02:48]} 14. Rc1 {[%clk 0:02:58]}  Nb6 {[%clk 0:02:40]} 15. b3 {[%clk 0:02:50]}  Bd6 {[%clk 0:02:34]} 16. Bxd6 {[%clk 0:02:50]}  Rxd6 {[%clk 0:02:34]} 17. Nb5 {[%clk 0:02:48]}  Rd7 {[%clk 0:02:30]} 18. Rc5 {[%clk 0:02:46]}  Kb8 {[%clk 0:02:06]} 19. Nbc3 {[%clk 0:02:05]}  Qa3 {[%clk 0:02:00]} 20. Rc1 {[%clk 0:01:59]}  Re8 {[%clk 0:01:59]} 21. Ka1 {[%clk 0:01:50]}  Nc8 {[%clk 0:01:57]} 22. Nb1 {[%clk 0:01:48]}  Qb4 {[%clk 0:01:57]} 23. a3 {[%clk 0:01:41]}  Qb6 {[%clk 0:01:56]} 24. b4 {[%clk 0:01:42]}  Ne4 {[%clk 0:01:56]} 25. Nec3 {[%clk 0:01:13]}  Nxc5 {[%clk 0:01:53]} 26. bxc5 {[%clk 0:01:10]}  Qc7 {[%clk 0:01:51]} 27. g3 {[%clk 0:01:08]}  Ka8 {[%clk 0:01:51]} 28. Nd2 {[%clk 0:01:07]}  Ne7 {[%clk 0:01:51]} 29. Rb1 {[%clk 0:01:07]}  Nf5 {[%clk 0:01:51]} 30. Nb3 {[%clk 0:00:54]}  Rb8 {[%clk 0:01:46]} 31. Na4 {[%clk 0:00:49]}  Ng7 {[%clk 0:01:40]} 32. Qc2 {[%clk 0:00:40]}  Ne6 {[%clk 0:01:39]} 33. Nd2 {[%clk 0:00:36]}  b5 {[%clk 0:01:36]} 34. cxb6 {[%clk 0:00:32]}  axb6 {[%clk 0:01:37]} 35. Nf3 {[%clk 0:00:30]}  b5 {[%clk 0:01:33]} 36. Nc3 {[%clk 0:00:25]}  Qa5 {[%clk 0:01:32]} 37. Rb3 {[%clk 0:00:24]}  Rc7 {[%clk 0:01:28]} 38. Na2 {[%clk 0:00:19]}  c5 {[%clk 0:01:20]} 39. dxc5 {[%clk 0:00:19]}  Rxc5 {[%clk 0:01:19]} 40. Qd1 {[%clk 0:00:19]}  Rbc8 {[%clk 0:01:18]} 41. Kb2 {[%clk 0:00:16]}  Qa4 {[%clk 0:01:14]} 42. Nb4 {[%clk 0:00:16]}  Nc7 {[%clk 0:00:59]} 43. Ne5 {[%clk 0:00:08]}  Na6 {[%clk 0:00:56]} 44. Nd7 {[%clk 0:00:07]}  Ka7 {[%clk 0:00:28]} 45. Nxa6 {[%clk 0:00:05]}  Rc2+ {[%clk 0:00:19]} 46. Qxc2 {[%clk 0:00:06]}  Rxc2+ {[%clk 0:00:19]} 47. Kxc2 {[%clk 0:00:06]}  Qc4+ {[%clk 0:00:20]} 48. Rc3 {[%clk 0:00:07]}  Qe2+ {[%clk 0:00:20]} 49. Kb3 {[%clk 0:00:07]}  Kxa6 {[%clk 0:00:21]} 50. Rc7 {[%clk 0:00:02]}  Qxf2 {[%clk 0:00:16]} 51. Kb4 {[%clk 0:00:02]}  Qxe3 {[%clk 0:00:13]} 52. Rc6+ {[%clk 0:00:02]}  Kb7 {[%clk 0:00:13]} 53. Rd6 {[%clk 0:00:02]}  Qd4+ {[%clk 0:00:11]} 54. Kxb5 {[%clk 0:00:01]}  Qc4+ {[%clk 0:00:12]} 55. Ka5 {[%clk 0:00:01]}  Kc7 {[%clk 0:00:12]} 56. Ra6 {[%clk 0:00:01]}  Kxd7 {[%clk 0:00:11]} 57. Ra7+ {[%clk 0:00:01]}  Ke6 {[%clk 0:00:12]} 58. a4 {[%clk 0:00:02]}  Qc5+ {[%clk 0:00:12]} 59. Ka6 {[%clk 0:00:02]}  Qc6+ {[%clk 0:00:12]} 60. Ka5 {[%clk 0:00:02]}  d4 {[%clk 0:00:13]} 61. Ra6 {[%clk 0:00:02]}  Qxa6+ {[%clk 0:00:13]} 62. Kxa6 {[%clk 0:00:03]}  d3 {[%clk 0:00:14]} 63. a5 {[%clk 0:00:03]}  d2 {[%clk 0:00:13]} 64. Kb7 {[%clk 0:00:04]}  d1=Q {[%clk 0:00:14]} 65. a6 {[%clk 0:00:05]}  Qb3+ {[%clk 0:00:13]} 66. Ka8 {[%clk 0:00:05]}  Qxg3 {[%clk 0:00:14]} 67. a7 {[%clk 0:00:05]}  Qf3+ {[%clk 0:00:13]} 68. Kb8 {[%clk 0:00:04]}  g5 {[%clk 0:00:13]} 69. hxg5 {[%clk 0:00:05]}  Kf5 {[%clk 0:00:13]} 70. Kc7 {[%clk 0:00:02]}  Kxg5 {[%clk 0:00:13]} 71. a8=Q {[%clk 0:00:01]}  Qxa8 {[%clk 0:00:13]} 72. Kd6 {[%clk 0:00:02]}  Qf3 {[%clk 0:00:13]} 73. Ke7 {[%clk 0:00:02]}  h4 {[%clk 0:00:14]} 0-1


[Site "https://www.chess.com"]